[Event "*** Titled Tuesday Blitz"]
[Site "Chess.com"]
[Date "2020.04.28"]
[Round "8"]
[White "JessPinkman"]
[Black "Michaelson_11"]
[Result "1-0"]
[WhiteElo "2486"]
[BlackElo "2006"]
[TimeControl "180+1"]
[EndTime "11:35:31 PDT"]
[Termination "JessPinkman won by resignation"]

1. e4 {[%clk 0:03:00.9]} 1... c5 {[%clk 0:02:59.4]} 2. Nf3 {[%clk 0:03:01.2]}
2... Nc6 {[%clk 0:02:59.7]} 3. d4 {[%clk 0:03:00.4]} 3... cxd4 {[%clk
0:03:00.6]} 4. Nxd4 {[%clk 0:03:01.3]} 4... g6 {[%clk 0:03:01.5]} 5. c4 {[%clk
0:03:01.2]} 5... Nf6 {[%clk 0:03:01.4]} 6. Nc3 {[%clk 0:03:00.6]} 6... d6 {[%clk
0:03:02]} 7. f3 {[%clk 0:02:58]} 7... Nxd4 {[%clk 0:03:01]} 8. Qxd4 {[%clk
0:02:57.8]} 8... Bg7 {[%clk 0:03:01.9]} 9. Be3 {[%clk 0:02:58.1]} 9... O-O
{[%clk 0:03:02.8]} 10. Qd2 {[%clk 0:02:58.7]} 10... Qa5 {[%clk 0:03:01.8]} 11.
Bd3 {[%clk 0:02:57.1]} 11... Be6 {[%clk 0:03:01.6]} 12. O-O {[%clk 0:02:55.7]}
12... Rfc8 {[%clk 0:02:59.9]} 13. b3 {[%clk 0:02:54.8]} 13... Ng4 {[%clk
0:02:10.6]} 14. fxg4 {[%clk 0:02:47.8]} 14... Bxc3 {[%clk 0:02:03.5]} 15. Qe2
{[%clk 0:02:24.3]} 15... Bxa1 {[%clk 0:02:00.7]} 16. Rxa1 {[%clk 0:02:24.6]}
16... Qc3 {[%clk 0:01:54.6]} 17. Rd1 {[%clk 0:02:08.8]} 17... Qe5 {[%clk
0:01:51.2]} 18. Bb1 {[%clk 0:02:02.6]} 18... a6 {[%clk 0:01:34.3]} 19. Bd4
{[%clk 0:02:01.9]} 19... Qg5 {[%clk 0:01:33.5]} 20. h3 {[%clk 0:02:01.6]} 20...
b5 {[%clk 0:01:06.4]} 21. cxb5 {[%clk 0:02:01.3]} 21... axb5 {[%clk 0:00:39.8]}
22. Be3 {[%clk 0:01:49.1]} 22... Qe5 {[%clk 0:00:39]} 23. Bd4 {[%clk 0:01:46.7]}
23... Qg5 {[%clk 0:00:38.6]} 24. Be3 {[%clk 0:01:31.7]} 24... Qe5 {[%clk
0:00:38]} 25. Qf2 {[%clk 0:01:31.8]} 25... Rc6 {[%clk 0:00:23]} 26. Bd4 {[%clk
0:01:27.9]} 26... Qg5 {[%clk 0:00:22.3]} 27. Be3 {[%clk 0:01:27.1]} 27... Qe5
{[%clk 0:00:21.2]} 28. Qh4 {[%clk 0:01:23.1]} 28... Qf6 {[%clk 0:00:09.2]} 29.
g5 {[%clk 0:01:00.1]} 29... Qb2 {[%clk 0:00:04.5]} 30. Bd4 {[%clk 0:00:47]}
30... Rc1 {[%clk 0:00:04.3]} 31. Bxb2 {[%clk 0:00:41.1]} 31... Rxd1+ {[%clk
0:00:04.5]} 32. Kh2 {[%clk 0:00:40.6]} 32... Rxb1 {[%clk 0:00:05.4]} 33. Bd4
{[%clk 0:00:33.4]} 33... Kf8 {[%clk 0:00:05.6]} 34. Qxh7 {[%clk 0:00:30.5]} 1-0

[Event "*** Titled Tuesday Blitz"]
[Site "Chess.com"]
[Date "2020.04.28"]
[Round "8"]
[White "abubakrtagelsir"]
[Black "Bagirova"]
[Result "1-0"]
[WhiteElo "2351"]
[BlackElo "2214"]
[TimeControl "180+1"]
[EndTime "11:35:32 PDT"]
[Termination "abubakrtagelsir won by resignation"]

1. e4 {[%clk 0:03:00.5]} 1... c5 {[%clk 0:02:59.3]} 2. Nc3 {[%clk 0:02:59.2]}
2... Nc6 {[%clk 0:02:57.8]} 3. f4 {[%clk 0:02:58.4]} 3... g6 {[%clk 0:02:57.8]}
4. Nf3 {[%clk 0:02:58.1]} 4... Bg7 {[%clk 0:02:58]} 5. Bb5 {[%clk 0:02:57.1]}
5... d6 {[%clk 0:02:57.2]} 6. O-O {[%clk 0:02:56.7]} 6... e6 {[%clk 0:02:56.9]}
7. Bxc6+ {[%clk 0:02:54.8]} 7... bxc6 {[%clk 0:02:55.3]} 8. d3 {[%clk
0:02:55.7]} 8... Ne7 {[%clk 0:02:53.7]} 9. Qe1 {[%clk 0:02:55.5]} 9... O-O
{[%clk 0:02:54]} 10. e5 {[%clk 0:02:54.1]} 10... Nf5 {[%clk 0:02:44.8]} 11. Ne4
{[%clk 0:02:51.9]} 11... dxe5 {[%clk 0:02:29.6]} 12. fxe5 {[%clk 0:02:50.4]}
12... Nd4 {[%clk 0:02:30.5]} 13. Nf6+ {[%clk 0:02:38.3]} 13... Bxf6 {[%clk
0:02:13]} 14. exf6 {[%clk 0:02:38.2]} 14... Qxf6 {[%clk 0:02:05.8]} 15. Nxd4
{[%clk 0:02:36.9]} 15... Qxd4+ {[%clk 0:02:04.8]} 16. Be3 {[%clk 0:02:23.7]}
16... Qxb2 {[%clk 0:02:03.1]} 17. Qf2 {[%clk 0:02:16.2]} 17... f5 {[%clk
0:01:59]} 18. Bxc5 {[%clk 0:02:15.1]} 18... Rf7 {[%clk 0:01:57.2]} 19. Bd4
{[%clk 0:02:14.1]} 19... Qb5 {[%clk 0:01:55.9]} 20. c4 {[%clk 0:02:10]} 20...
Qb8 {[%clk 0:01:50.9]} 21. Rae1 {[%clk 0:01:56.8]} 21... Qd6 {[%clk 0:01:50.5]}
22. Qe3 {[%clk 0:01:52.1]} 22... a5 {[%clk 0:01:38.8]} 23. Be5 {[%clk
0:01:45.7]} 23... Qa3 {[%clk 0:01:27]} 24. Ba1 {[%clk 0:01:40.9]} 24... Qd6
{[%clk 0:01:04.4]} 25. Be5 {[%clk 0:01:37.2]} 25... Qc7 {[%clk 0:01:00.8]} 26.
Bxc7 {[%clk 0:01:35.4]} 26... Rxc7 {[%clk 0:00:59]} 27. Qe5 {[%clk 0:01:33.3]}
27... Rf7 {[%clk 0:00:55.4]} 28. Qd6 {[%clk 0:01:31.8]} 28... a4 {[%clk
0:00:47.9]} 29. Qxc6 {[%clk 0:01:30.2]} 29... Bb7 {[%clk 0:00:47.9]} 30. Qxe6
{[%clk 0:01:28.9]} 30... Rd8 {[%clk 0:00:47.5]} 31. Re3 {[%clk 0:01:25.6]} 31...
f4 {[%clk 0:00:45.9]} 32. Rh3 {[%clk 0:01:22.4]} 32... Bc8 {[%clk 0:00:40]} 33.
Qb6 {[%clk 0:01:20]} 33... Re8 {[%clk 0:00:36.3]} 34. Rhf3 {[%clk 0:01:17.2]}
34... Ref8 {[%clk 0:00:32.8]} 35. d4 {[%clk 0:01:13]} 35... Bg4 {[%clk
0:00:31.1]} 36. R3f2 {[%clk 0:01:12]} 36... Rf6 {[%clk 0:00:24.8]} 37. Qc7
{[%clk 0:01:07.6]} 37... g5 {[%clk 0:00:23.3]} 38. Qe5 {[%clk 0:01:05.7]} 38...
Rf5 {[%clk 0:00:22.3]} 39. Qe6+ {[%clk 0:01:04.6]} 39... Kh8 {[%clk 0:00:20.7]}
40. h4 {[%clk 0:01:03.1]} 40... gxh4 {[%clk 0:00:16.4]} 41. Qh6 {[%clk
0:00:58.5]} 41... h3 {[%clk 0:00:13.9]} 42. Rxf4 {[%clk 0:00:57.5]} 42... h2+
{[%clk 0:00:13.7]} 43. Kxh2 {[%clk 0:00:57.3]} 43... Rh5+ {[%clk 0:00:12.6]} 44.
Qxh5 {[%clk 0:00:56]} 1-0

[Event "*** Titled Tuesday Blitz"]
[Site "Chess.com"]
[Date "2020.04.28"]
[Round "8"]
[White "Abund"]
[Black "1f3_2g41-0"]
[Result "1/2-1/2"]
[WhiteElo "2662"]
[BlackElo "2263"]
[TimeControl "180+1"]
[EndTime "11:35:35 PDT"]
[Termination "Game drawn by agreement"]

1. Nf3 {[%clk 0:03:00.9]} 1... d5 {[%clk 0:02:57.4]} 2. d4 {[%clk 0:03:00.9]}
2... Nf6 {[%clk 0:02:56.4]} 3. c4 {[%clk 0:03:01.3]} 3... e6 {[%clk 0:02:55.3]}
4. Nc3 {[%clk 0:03:01.3]} 4... g6 {[%clk 0:02:54.6]} 5. g3 {[%clk 0:02:53]} 5...
Bg7 {[%clk 0:02:51.7]} 6. Bg2 {[%clk 0:02:53.3]} 6... O-O {[%clk 0:02:49.6]} 7.
O-O {[%clk 0:02:50.5]} 7... Ne4 {[%clk 0:02:47.2]} 8. Qd3 {[%clk 0:02:41.6]}
8... Nxc3 {[%clk 0:02:30.3]} 9. bxc3 {[%clk 0:02:39.8]} 9... Nc6 {[%clk
0:02:25.6]} 10. Bg5 {[%clk 0:02:16]} 10... Bf6 {[%clk 0:02:24.3]} 11. Bh6 {[%clk
0:02:11.3]} 11... Bg7 {[%clk 0:02:23.7]} 12. Bg5 {[%clk 0:02:11.5]} 12... Bf6
{[%clk 0:02:23.3]} 13. Bf4 {[%clk 0:02:11.8]} 13... Na5 {[%clk 0:02:12.4]} 14.
Nd2 {[%clk 0:01:59]} 14... b6 {[%clk 0:01:55.4]} 15. cxd5 {[%clk 0:01:32.8]}
15... exd5 {[%clk 0:01:54]} 16. e4 {[%clk 0:01:26.6]} 16... dxe4 {[%clk
0:01:45.1]} 17. Nxe4 {[%clk 0:01:24.6]} 17... Bg7 {[%clk 0:01:26]} 18. Bg5
{[%clk 0:01:13.3]} 18... f6 {[%clk 0:01:21.4]} 19. Nxf6+ {[%clk 0:00:56]} 19...
Bxf6 {[%clk 0:01:20.7]} 20. Bxf6 {[%clk 0:00:55.4]} 20... Qxf6 {[%clk
0:01:15.7]} 21. Bxa8 {[%clk 0:00:54.1]} 21... c6 {[%clk 0:01:15.6]} 22. d5
{[%clk 0:00:17.2]} 22... Bf5 {[%clk 0:01:07.8]} 23. Qf3 {[%clk 0:00:17]} 23...
Rxa8 {[%clk 0:01:05]} 24. Rfe1 {[%clk 0:00:06.9]} 24... Rf8 {[%clk 0:00:58.4]}
25. dxc6 {[%clk 0:00:05.3]} 25... Nxc6 {[%clk 0:00:56.8]} 26. Rad1 {[%clk
0:00:04.9]} 26... Ne5 {[%clk 0:00:34]} 27. Qd5+ {[%clk 0:00:05.1]} 27... Be6
{[%clk 0:00:33.4]} 28. Qxe5 {[%clk 0:00:03.5]} 28... Qxf2+ {[%clk 0:00:33.3]}
29. Kh1 {[%clk 0:00:04]} 29... Qf3+ {[%clk 0:00:30.8]} 30. Kg1 {[%clk
0:00:04.3]} 30... Qf2+ {[%clk 0:00:09.1]} 31. Kh1 {[%clk 0:00:04.6]} 31... Qf3+
{[%clk 0:00:09.7]} 32. Kg1 {[%clk 0:00:05]} 1/2-1/2

[Event "*** Titled Tuesday Blitz"]
[Site "Chess.com"]
[Date "2020.04.28"]
[Round "8"]
[White "Kaponov"]
[Black "SHIVACalypso"]
[Result "0-1"]
[WhiteElo "2110"]
[BlackElo "2280"]
[TimeControl "180+1"]
[EndTime "11:35:36 PDT"]
[Termination "SHIVACalypso won on time"]

1. d4 {[%clk 0:03:00.9]} 1... e6 {[%clk 0:02:57.9]} 2. c4 {[%clk 0:03:01.1]}
2... Nf6 {[%clk 0:02:56.8]} 3. g3 {[%clk 0:02:59.3]} 3... d5 {[%clk 0:02:55.5]}
4. Nf3 {[%clk 0:02:58.5]} 4... Be7 {[%clk 0:02:55.2]} 5. Bg2 {[%clk 0:02:59]}
5... O-O {[%clk 0:02:55.4]} 6. O-O {[%clk 0:02:59.2]} 6... dxc4 {[%clk
0:02:54.9]} 7. Qc2 {[%clk 0:02:59.5]} 7... a6 {[%clk 0:02:52.8]} 8. a4 {[%clk
0:02:59.8]} 8... Bd7 {[%clk 0:02:52]} 9. Qxc4 {[%clk 0:02:59.8]} 9... Bc6 {[%clk
0:02:47.2]} 10. Bg5 {[%clk 0:02:57.7]} 10... h6 {[%clk 0:02:42.7]} 11. Bxf6
{[%clk 0:02:53.3]} 11... Bxf6 {[%clk 0:02:43.6]} 12. Nc3 {[%clk 0:02:53.2]}
12... Nd7 {[%clk 0:02:36.4]} 13. Rfd1 {[%clk 0:02:45.6]} 13... Nb6 {[%clk
0:02:34]} 14. Qd3 {[%clk 0:02:36.8]} 14... Nd5 {[%clk 0:02:31.8]} 15. e4 {[%clk
0:02:31.5]} 15... Nxc3 {[%clk 0:02:30.9]} 16. bxc3 {[%clk 0:02:29.7]} 16... g6
{[%clk 0:02:19.4]} 17. a5 {[%clk 0:02:14.1]} 17... Qe7 {[%clk 0:02:15.8]} 18. h4
{[%clk 0:02:03.1]} 18... Rfd8 {[%clk 0:02:06.6]} 19. h5 {[%clk 0:02:01.4]} 19...
g5 {[%clk 0:02:05.5]} 20. Qe2 {[%clk 0:01:14.7]} 20... Be8 {[%clk 0:01:51.2]}
21. e5 {[%clk 0:01:10]} 21... Bg7 {[%clk 0:01:47.4]} 22. Nd2 {[%clk 0:01:09.5]}
22... c5 {[%clk 0:01:44.8]} 23. Ne4 {[%clk 0:01:05.8]} 23... Bb5 {[%clk
0:01:26.4]} 24. c4 {[%clk 0:00:56.4]} 24... Bc6 {[%clk 0:01:24.1]} 25. Nxc5
{[%clk 0:00:56.8]} 25... Rac8 {[%clk 0:01:10.7]} 26. Ne4 {[%clk 0:00:46.3]}
26... Bxe4 {[%clk 0:01:08.3]} 27. Bxe4 {[%clk 0:00:44.6]} 27... Qb4 {[%clk
0:01:03.6]} 28. Bd3 {[%clk 0:00:32.9]} 28... Kf8 {[%clk 0:00:40.8]} 29. Qe4
{[%clk 0:00:23.1]} 29... Qc3 {[%clk 0:00:36.7]} 30. Bf1 {[%clk 0:00:20.3]} 30...
Rc7 {[%clk 0:00:31.1]} 31. c5 {[%clk 0:00:20.1]} 31... Rcd7 {[%clk 0:00:28.8]}
32. Ra4 {[%clk 0:00:18.4]} 32... Qb3 {[%clk 0:00:22.4]} 33. Raa1 {[%clk
0:00:10.4]} 33... Qc3 {[%clk 0:00:21.3]} 34. Rac1 {[%clk 0:00:03.9]} 34... Qxa5
{[%clk 0:00:20.4]} 35. Bh3 {[%clk 0:00:02.6]} 35... Qa4 {[%clk 0:00:16.9]} 0-1

[Event "*** Titled Tuesday Blitz"]
[Site "Chess.com"]
[Date "2020.04.28"]
[Round "8"]
[White "Murad_Ibrahimli"]
[Black "chessdjw"]
[Result "0-1"]
[WhiteElo "2735"]
[BlackElo "2596"]
[TimeControl "180+1"]
[EndTime "11:35:37 PDT"]
[Termination "chessdjw won by resignation"]

1. c4 {[%clk 0:03:00.9]} 1... e6 {[%clk 0:02:57]} 2. Nc3 {[%clk 0:03:00.3]} 2...
d5 {[%clk 0:02:56.9]} 3. d4 {[%clk 0:02:59.4]} 3... Nf6 {[%clk 0:02:57]} 4. Nf3
{[%clk 0:02:58.5]} 4... Be7 {[%clk 0:02:54.4]} 5. Bf4 {[%clk 0:02:57.4]} 5...
O-O {[%clk 0:02:54.6]} 6. e3 {[%clk 0:02:57.3]} 6... Nbd7 {[%clk 0:02:50.1]} 7.
c5 {[%clk 0:02:57.1]} 7... Ne4 {[%clk 0:02:46.9]} 8. Rc1 {[%clk 0:02:55.2]} 8...
f5 {[%clk 0:02:41.6]} 9. Nxe4 {[%clk 0:02:40.6]} 9... fxe4 {[%clk 0:02:34.7]}
10. Ne5 {[%clk 0:02:39.2]} 10... Bh4 {[%clk 0:02:21.6]} 11. Nxd7 {[%clk
0:02:33.2]} 11... Bxd7 {[%clk 0:02:14.6]} 12. Be2 {[%clk 0:02:32.4]} 12... Bxf2+
{[%clk 0:01:54.4]} 13. Kxf2 {[%clk 0:02:30.5]} 13... g5 {[%clk 0:01:55.1]} 14.
g3 {[%clk 0:02:30.4]} 14... gxf4 {[%clk 0:01:55.7]} 15. exf4 {[%clk 0:02:29.3]}
15... Qf6 {[%clk 0:01:42.7]} 16. Ke3 {[%clk 0:02:27.9]} 16... Kh8 {[%clk
0:01:40.9]} 17. Qe1 {[%clk 0:02:23.2]} 17... Rae8 {[%clk 0:01:03.8]} 18. b4
{[%clk 0:01:47.7]} 18... a6 {[%clk 0:00:37.5]} 19. Qc3 {[%clk 0:01:32]} 19...
Bb5 {[%clk 0:00:34.7]} 20. Kd2 {[%clk 0:01:00.9]} 20... c6 {[%clk 0:00:33.8]}
21. Qe3 {[%clk 0:00:58.8]} 21... Qg7 {[%clk 0:00:31.4]} 22. Bd1 {[%clk
0:00:56.6]} 22... Bd3 {[%clk 0:00:29.3]} 23. Rc3 {[%clk 0:00:53]} 23... a5
{[%clk 0:00:28.8]} 24. bxa5 {[%clk 0:00:38.8]} 24... Ra8 {[%clk 0:00:29.2]} 25.
a4 {[%clk 0:00:38.4]} 25... Rxa5 {[%clk 0:00:28.5]} 26. Bb3 {[%clk 0:00:35.2]}
26... Rfa8 {[%clk 0:00:24.4]} 27. Ra1 {[%clk 0:00:31.7]} 27... R5a6 {[%clk
0:00:24.1]} 28. Bd1 {[%clk 0:00:27.3]} 28... b5 {[%clk 0:00:22.7]} 29. cxb6
{[%clk 0:00:13.5]} 29... Rxb6 {[%clk 0:00:23]} 30. Rb3 {[%clk 0:00:13.2]} 30...
Rxb3 {[%clk 0:00:21.7]} 31. Bxb3 {[%clk 0:00:13.2]} 31... c5 {[%clk 0:00:22.5]}
32. a5 {[%clk 0:00:05.2]} 32... cxd4 {[%clk 0:00:22.6]} 33. Qe1 {[%clk
0:00:05.3]} 33... Qg6 {[%clk 0:00:18.7]} 34. Qc1 {[%clk 0:00:03.6]} 34... e3+
{[%clk 0:00:19.1]} 35. Ke1 {[%clk 0:00:03.2]} 35... Qe4 {[%clk 0:00:19.6]} 0-1

[Event "*** Titled Tuesday Blitz"]
[Site "Chess.com"]
[Date "2020.04.28"]
[Round "8"]
[White "FairChess_on_YouTube"]
[Black "Zkid"]
[Result "1-0"]
[WhiteElo "3053"]
[BlackElo "2811"]
[TimeControl "180+1"]
[EndTime "11:35:41 PDT"]
[Termination "FairChess_on_YouTube won by resignation"]

1. e4 {[%clk 0:03:00.9]} 1... e6 {[%clk 0:03:00.1]} 2. d4 {[%clk 0:03:00.2]}
2... d5 {[%clk 0:03:00.7]} 3. Nc3 {[%clk 0:03:00.4]} 3... Bb4 {[%clk 0:02:59.8]}
4. e5 {[%clk 0:02:55.7]} 4... c5 {[%clk 0:02:59.8]} 5. a3 {[%clk 0:02:55.9]}
5... Ba5 {[%clk 0:02:59.2]} 6. b4 {[%clk 0:02:54.8]} 6... cxd4 {[%clk
0:02:59.1]} 7. Qg4 {[%clk 0:02:51.9]} 7... Ne7 {[%clk 0:02:55.5]} 8. bxa5 {[%clk
0:02:36]} 8... dxc3 {[%clk 0:02:53.2]} 9. Qxg7 {[%clk 0:02:35.7]} 9... Rg8
{[%clk 0:02:52.6]} 10. Qxh7 {[%clk 0:02:35.8]} 10... Nbc6 {[%clk 0:02:39.7]} 11.
Nf3 {[%clk 0:02:33.7]} 11... Qxa5 {[%clk 0:02:32.9]} 12. Rb1 {[%clk 0:02:29]}
12... Qc7 {[%clk 0:02:29.7]} 13. Bf4 {[%clk 0:02:23.4]} 13... Bd7 {[%clk
0:02:24]} 14. Bg3 {[%clk 0:02:14.5]} 14... O-O-O {[%clk 0:02:22]} 15. Qd3 {[%clk
0:02:11.4]} 15... d4 {[%clk 0:02:16.2]} 16. Be2 {[%clk 0:02:09]} 16... Nf5
{[%clk 0:02:02.6]} 17. O-O {[%clk 0:02:08.8]} 17... Nxg3 {[%clk 0:01:59.6]} 18.
fxg3 {[%clk 0:02:08.8]} 18... Kb8 {[%clk 0:01:48.6]} 19. Qe4 {[%clk 0:01:59]}
19... Bc8 {[%clk 0:01:46.3]} 20. Bb5 {[%clk 0:01:42.2]} 20... Ne7 {[%clk
0:01:41.8]} 21. Bd3 {[%clk 0:01:39.3]} 21... b6 {[%clk 0:01:39]} 22. Qf4 {[%clk
0:01:32.3]} 22... Nc6 {[%clk 0:01:12.9]} 23. h4 {[%clk 0:01:24.9]} 23... Rg7
{[%clk 0:01:08.4]} 24. h5 {[%clk 0:01:16.2]} 24... Rdg8 {[%clk 0:01:07.8]} 25.
h6 {[%clk 0:01:13.4]} 25... Rxg3 {[%clk 0:00:59.9]} 26. h7 {[%clk 0:01:13.5]}
26... Rxg2+ {[%clk 0:00:56.1]} 27. Kh1 {[%clk 0:01:13.6]} 27... Bb7 {[%clk
0:00:38.4]} 28. Rg1 {[%clk 0:01:11.3]} 28... Rxg1+ {[%clk 0:00:34.4]} 29. Rxg1
{[%clk 0:01:12.2]} 29... Rc8 {[%clk 0:00:22.1]} 30. Rg8 {[%clk 0:01:02.3]} 30...
Ne7 {[%clk 0:00:20.1]} 31. Rxc8+ {[%clk 0:00:44.2]} 31... Qxc8 {[%clk 0:00:20]}
32. Qf6 {[%clk 0:00:35.8]} 32... Bxf3+ {[%clk 0:00:19.8]} 33. Kg1 {[%clk
0:00:32.4]} 33... Nd5 {[%clk 0:00:17.7]} 34. Qg7 {[%clk 0:00:29.4]} 34... Nf4
{[%clk 0:00:13.7]} 35. h8=Q {[%clk 0:00:22.6]} 35... Nxd3 {[%clk 0:00:13.8]} 36.
cxd3 {[%clk 0:00:21.3]} 36... c2 {[%clk 0:00:11.9]} 37. Qxc8+ {[%clk 0:00:21.1]}
37... Kxc8 {[%clk 0:00:12.8]} 38. Qf8+ {[%clk 0:00:19.3]} 38... Kb7 {[%clk
0:00:11.8]} 39. Qxf7+ {[%clk 0:00:19.3]} 39... Ka6 {[%clk 0:00:12.3]} 40. Qc7
{[%clk 0:00:19.4]} 40... Bd1 {[%clk 0:00:10.5]} 41. Kf2 {[%clk 0:00:18.5]} 41...
Ka5 {[%clk 0:00:10.9]} 42. Ke1 {[%clk 0:00:17.4]} 42... Ka4 {[%clk 0:00:10.8]}
43. Kd2 {[%clk 0:00:17.8]} 43... Kb3 {[%clk 0:00:11]} 44. Kc1 {[%clk 0:00:17.5]}
1-0

[Event "*** Titled Tuesday Blitz"]
[Site "Chess.com"]
[Date "2020.04.28"]
[Round "8"]
[White "MusicCityMaster"]
[Black "Beca95"]
[Result "0-1"]
[WhiteElo "2293"]
[BlackElo "2845"]
[TimeControl "180+1"]
[EndTime "11:35:43 PDT"]
[Termination "Beca95 won by resignation"]

1. d4 {[%clk 0:03:00.9]} 1... Nf6 {[%clk 0:02:58.2]} 2. c4 {[%clk 0:02:58.6]}
2... e6 {[%clk 0:02:58.1]} 3. Nc3 {[%clk 0:02:58.6]} 3... c5 {[%clk 0:02:58.1]}
4. d5 {[%clk 0:02:58.2]} 4... exd5 {[%clk 0:02:58.8]} 5. cxd5 {[%clk 0:02:58.7]}
5... d6 {[%clk 0:02:59]} 6. Nf3 {[%clk 0:02:58.1]} 6... g6 {[%clk 0:02:59.3]} 7.
Bf4 {[%clk 0:02:57.9]} 7... Bg7 {[%clk 0:02:59.1]} 8. h3 {[%clk 0:02:57.6]} 8...
O-O {[%clk 0:02:58.1]} 9. e3 {[%clk 0:02:57.6]} 9... Na6 {[%clk 0:02:57.6]} 10.
Be2 {[%clk 0:02:56.1]} 10... Nc7 {[%clk 0:02:54.3]} 11. a4 {[%clk 0:02:55.5]}
11... Re8 {[%clk 0:02:54.5]} 12. O-O {[%clk 0:02:48.7]} 12... a6 {[%clk
0:02:53.3]} 13. Rc1 {[%clk 0:02:24.8]} 13... Rb8 {[%clk 0:02:15.6]} 14. Ne1
{[%clk 0:01:36.6]} 14... b5 {[%clk 0:02:13.6]} 15. Bf3 {[%clk 0:01:36.3]} 15...
b4 {[%clk 0:02:12.2]} 16. Ne2 {[%clk 0:01:35.9]} 16... a5 {[%clk 0:02:10.7]} 17.
b3 {[%clk 0:01:31.8]} 17... Ba6 {[%clk 0:02:10.5]} 18. Bg5 {[%clk 0:01:16.8]}
18... h6 {[%clk 0:02:08.4]} 19. Bh4 {[%clk 0:01:11.4]} 19... g5 {[%clk
0:02:03.6]} 20. Bg3 {[%clk 0:01:11]} 20... Ne4 {[%clk 0:02:03.9]} 21. Bxe4
{[%clk 0:01:06.1]} 21... Rxe4 {[%clk 0:02:04.8]} 22. Nf3 {[%clk 0:00:57.9]}
22... Re8 {[%clk 0:01:52.4]} 23. Re1 {[%clk 0:00:57]} 23... Bb7 {[%clk
0:01:49.1]} 24. Nd2 {[%clk 0:00:39.4]} 24... Bxd5 {[%clk 0:01:40.6]} 25. e4
{[%clk 0:00:32.8]} 25... Ba8 {[%clk 0:01:27.8]} 26. Nc4 {[%clk 0:00:32.6]} 26...
d5 {[%clk 0:01:28]} 27. exd5 {[%clk 0:00:29.8]} 27... Nxd5 {[%clk 0:01:23.8]}
28. Bxb8 {[%clk 0:00:28.9]} 28... Qxb8 {[%clk 0:01:24.7]} 29. Ng3 {[%clk
0:00:24.9]} 29... Rd8 {[%clk 0:01:22]} 30. Qg4 {[%clk 0:00:20.8]} 30... Nf4
{[%clk 0:01:21.5]} 31. f3 {[%clk 0:00:20.5]} 31... Bd5 {[%clk 0:01:17.9]} 32.
Ne3 {[%clk 0:00:18.7]} 32... Be6 {[%clk 0:01:17.3]} 33. Ngf5 {[%clk 0:00:18.2]}
33... Rd2 {[%clk 0:01:13.8]} 34. Qg3 {[%clk 0:00:16.5]} 34... Bd4 {[%clk
0:01:09.3]} 35. Kh2 {[%clk 0:00:15.8]} 35... Be5 {[%clk 0:01:08.2]} 36. Kh1
{[%clk 0:00:14.4]} 36... Kh7 {[%clk 0:01:06.4]} 37. Rcd1 {[%clk 0:00:12.7]}
37... Nxg2 {[%clk 0:01:03.7]} 38. Qxg2 {[%clk 0:00:11.1]} 38... Rxg2 {[%clk
0:01:02.6]} 39. Kxg2 {[%clk 0:00:11.6]} 39... Bxb3 {[%clk 0:00:59]} 40. Ng4
{[%clk 0:00:11.7]} 40... Bg7 {[%clk 0:00:56.8]} 41. Rd7 {[%clk 0:00:11]} 41...
h5 {[%clk 0:00:52.2]} 42. Nxg7 {[%clk 0:00:10.6]} 42... Kxg7 {[%clk 0:00:51.4]}
43. Ne5 {[%clk 0:00:10.6]} 43... Qe8 {[%clk 0:00:47.6]} 44. Rd2 {[%clk
0:00:07.4]} 44... c4 {[%clk 0:00:44.9]} 45. Rde2 {[%clk 0:00:07.3]} 45... c3
{[%clk 0:00:43]} 46. Ng4 {[%clk 0:00:06]} 46... Qxa4 {[%clk 0:00:42.1]} 47. Ne3
{[%clk 0:00:05.6]} 47... Qb5 {[%clk 0:00:41.1]} 48. Kf2 {[%clk 0:00:02.2]} 48...
Be6 {[%clk 0:00:39.5]} 49. Kg2 {[%clk 0:00:02.3]} 49... b3 {[%clk 0:00:38.3]}
50. Kf2 {[%clk 0:00:02.6]} 50... b2 {[%clk 0:00:37.5]} 0-1